fUSD/lending_fUSD_20260527
["ID","MTS","AMOUNT","RATE_DAILY","PERIOD"]
[423137794,1779885043000,-150.0,0.00033608,7]
[423137796,1779885043000,-2060.45,0.00033666,2]
[423137795,1779885043000,-150.0,0.0003362,7]
[423137812,1779885043000,-150.0,0.00034027,7]
[423137793,1779885043000,-62938.72054958,0.00033566,2]
[423137791,1779885043000,-2802.79913372,0.00033566,2]
[423137799,1779885043000,-200.0,0.00033729,2]
[423137814,1779885043000,-617.9993,0.00034159,2]
[423137819,1779885043000,-502.0,0.00034192,2]
[423137811,1779885043000,-150.0,0.00033941,7]
[423137841,1779885043000,-203.8585432,0.00034542,10]
[423137837,1779885043000,-5000.0,0.00034526,2]
[423137839,1779885043000,-150.0,0.00034542,10]
[423137840,1779885043000,-150.0,0.00034542,10]
[423137842,1779885043000,-106.31017686,0.00034569,7]
[423137838,1779885043000,-2013.18518365,0.00034534,2]
[423137836,1779885043000,-1767.89614125,0.00034526,2]
[423137835,1779885043000,-840.0,0.00034526,2]
[423137833,1779885043000,-1972.17258109,0.00034526,8]
[423137834,1779885043000,-1561.73611048,0.00034526,2]
[423137813,1779885043000,-14147.374687,0.00034109,2]
[423137832,1779885043000,-395.88544969,0.00034526,2]
[423137831,1779885043000,-2500.0,0.00034526,2]
[423137830,1779885043000,-2060.45,0.00034487,2]
[423137817,1779885043000,-150.0,0.00034163,7]
[423137824,1779885043000,-150.0,0.00034273,7]
[423137828,1779885043000,-150.0,0.00034407,7]
[423137822,1779885043000,-248.224512,0.00034202,120]
[423137823,1779885043000,-1743.66,0.00034249,10]
[423137825,1779885043000,-150.0,0.00034298,7]
[423137827,1779885043000,-27656.87081923,0.00034359,2]
[423137820,1779885043000,-314.856959,0.00034202,21]
[423137829,1779885043000,-150.0,0.00034434,7]
[423137821,1779885043000,-245.137819,0.00034202,21]
[423137826,1779885043000,-245.137818,0.000343,120]
[423137854,1779885046000,-500.0,0.00034625,30]
[423137856,1779885046000,-83.83618521,0.00034625,30]
[423137858,1779885046000,-148.21707599,0.00034625,7]
[423137855,1779885046000,-500.0,0.00034625,30]
[423137852,1779885046000,-17.16381479,0.00034625,30]
[423137874,1779885046000,-2000.0,0.0003474,30]
[423137850,1779885046000,-500.0,0.00034625,30]
[423137851,1779885046000,-482.83618521,0.00034625,30]
[423137849,1779885046000,-565.47321967,0.00034625,120]
[423137847,1779885046000,-43.68982314,0.00034569,7]
[423137848,1779885046000,-150.0,0.00034606,7]
[423137857,1779885046000,-416.16381479,0.00034625,30]
[423137853,1779885046000,-500.0,0.00034625,30]
[423137859,1779885046000,-351.78292401,0.00034625,7]
[423137868,1779885046000,-500.0,0.0003466,120]
[423137862,1779885046000,-500.0,0.00034625,7]
[423137871,1779885046000,-166.66,0.00034672,30]
[423137872,1779885046000,-200.0,0.000347,12]
[423137870,1779885046000,-250.0,0.0003466,2]
[423137873,1779885046000,-150.0,0.00034705,7]
[423137875,1779885046000,-2613.35984216,0.0003475,2]
[423137869,1779885046000,-193.0,0.0003466,120]
[423137860,1779885046000,-500.0,0.00034625,7]
[423137867,1779885046000,-430.14103182,0.00034634,2]
[423137865,1779885046000,-300.0,0.00034625,10]
[423137864,1779885046000,-300.0,0.00034625,10]
[423137863,1779885046000,-632.63015398,0.00034625,7]
[423137861,1779885046000,-500.0,0.00034625,7]
[423137866,1779885046000,-250.0,0.00034626,30]
[423137877,1779885070000,153.32,0.00017048,2]
[423137878,1779885075000,152.0,0.00029533,3]
[423137879,1779885211000,150.43,0.00026748,2]
[423137880,1779885306000,302.0,0.00030137,10]
[423137881,1779885343000,519.0,0.00027999,2]
[423137882,1779885353000,376.42,0.00024174,2]
[423137883,1779885354000,376.42,0.00025786,2]
[423137886,1779885505000,250.0,0.00014,2]
[423137887,1779885510000,151.0,0.00030999,2]
[423137888,1779885515000,200.0,0.00030814,15]
[423137889,1779885516000,151.0,0.00029,2]
[423137891,1779885523000,151.0,0.000288,2]
[423137890,1779885523000,295.72720341,0.00030814,15]
[423137892,1779885535000,151.0,0.00021999,2]
[423137893,1779885540000,151.0,0.0002,2]
[423137894,1779885547000,151.0,0.00025,2]
[423137895,1779885561000,151.0,0.000256,2]
[423137896,1779885567000,151.0,0.00028,2]
[423137897,1779885610000,151.0,0.000258,2]
[423137898,1779885616000,1570.31502718,0.00030999,2]
[423137899,1779885628000,151.0,0.000264,2]
[423137900,1779885659000,263.64,0.00029159,7]
[423137901,1779885659000,263.64,0.00030094,7]
[423137902,1779885660000,263.64,0.00030999,7]
[423137904,1779885884000,208.97895572,0.00029,2]
[423137905,1779885914000,215.46156935,0.00029,2]
[423137906,1779885919000,160.0,0.00029724,30]
[423137907,1779885932000,253.2668542,0.00029,2]
[423137908,1779885937000,165.0,0.00029724,30]
[423137909,1779885984000,158.0,0.00029724,30]
[423137910,1779886008000,160.0,0.00029,2]
[423137911,1779886012000,225.85,0.00024174,2]
[423137912,1779886013000,225.85,0.00025786,2]
[423137914,1779886015000,-250.0,0.00031242,2]
[423137913,1779886015000,-186.81,0.00031,2]
[423137916,1779886015000,-150.0,0.00031315,7]
[423137917,1779886015000,-51.71761397,0.00031315,7]
[423137915,1779886015000,-166.69,0.0003127,30]
[423137919,1779886034000,-229.80082632,0.00031314,2]
[423137918,1779886034000,-450.0,0.00031215,114]
[423137923,1779886034000,-150.0,0.00031315,7]
[423137922,1779886034000,-150.0,0.00031315,7]
[423137920,1779886034000,-170.19917368,0.00031314,2]
[423137925,1779886034000,-150.0,0.00031315,7]
[423137926,1779886034000,-10.45875796,0.00031315,7]
[423137924,1779886034000,-150.0,0.00031315,7]
[423137921,1779886034000,-98.28238603,0.00031315,7]
[423137937,1779886054000,170.18,0.00016172,2]
[423137938,1779886055000,170.18,0.00024257,2]
[423137939,1779886106000,161.9303172,0.00029724,30]
[423137946,1779886141000,171.0,0.00029724,30]
[423137961,1779886174000,-150.0,0.00031315,7]
[423137959,1779886174000,-150.0,0.00031315,7]
[423137962,1779886174000,-202.95494596,0.00031315,7]
[423137958,1779886174000,-139.54124204,0.00031315,7]
[423137960,1779886174000,-150.0,0.00031315,7]
[423137964,1779886174000,-150.0,0.0003152,7]
[423137971,1779886174000,-150.0,0.00031724,7]
[423137965,1779886174000,-150.0,0.00031621,30]
[423137967,1779886174000,-161.75,0.00031678,30]
[423137968,1779886174000,-150.0,0.00031702,7]
[423137966,1779886174000,-159.62,0.00031636,30]
[423137970,1779886174000,-159.83,0.00031721,30]
[423137969,1779886174000,-150.0,0.00031704,30]
[423137963,1779886174000,-150.0,0.00031315,7]
[423137974,1779886176000,161.76,0.00031597,30]
[423137973,1779886176000,150.0,0.00031544,30]
[423137972,1779886176000,159.51,0.00031559,30]
[423137978,1779886202000,160.0,0.00029724,30]
[423138035,1779886232000,-150.0,0.00032543,7]
[423138039,1779886232000,-1852.42,0.00032682,2]
[423138031,1779886232000,-150.0,0.00032475,7]
[423138027,1779886232000,-199.39128111,0.0003245,7]
[423138029,1779886232000,-150.0,0.00032475,7]
[423138016,1779886232000,-200.0,0.0003231,2]
[423138022,1779886232000,-170.18,0.00032343,2]
[423138020,1779886232000,-555.0,0.00032343,2]
[423138018,1779886232000,-150.0,0.00032338,7]
[423138033,1779886232000,-150.0,0.00032475,7]
[423138024,1779886232000,-150.0,0.00032418,2]
[423138037,1779886232000,-332.95,0.00032636,120]
[423138048,1779886232000,-1346.12,0.00032797,2]
[423138043,1779886232000,-150.0,0.00032707,7]
[423138045,1779886232000,-278.57,0.00032708,120]
[423138047,1779886232000,-150.0,0.00032748,7]
[423138014,1779886232000,-12426.0,0.000323,2]
[423138055,1779886232000,-150.0,0.00032952,7]
[423138049,1779886232000,-162.31,0.0003281,2]
[423138057,1779886232000,-150.0,0.00032957,2]
[423138051,1779886232000,-150.0,0.00032861,7]
[423138053,1779886232000,-166.69,0.00032916,30]
[423138059,1779886232000,-502.62966706,0.00033,120]
[423138063,1779886232000,-190.45112973,0.00033,120]
[423138041,1779886232000,-150.0,0.00032707,7]
[423138012,1779886232000,-537.35881947,0.00032277,2]
[423138013,1779886232000,-2456.33118053,0.00032277,2]
[423138010,1779886232000,-200.0,0.00032273,2]
[423137987,1779886232000,-150.0,0.0003191,7]
[423137988,1779886232000,-152.0,0.00031914,4]
[423137989,1779886232000,-27.02400013,0.00031918,7]
[423137990,1779886232000,-132.48599987,0.00031918,7]
[423137991,1779886232000,-150.0,0.00031929,7]
[423137992,1779886232000,-159.62,0.00031956,7]
[423137994,1779886232000,-502.62966706,0.00032,120]
[423137995,1779886232000,-169.91712599,0.00032,120]
[423137993,1779886232000,-236.53093378,0.00032,120]
[423138000,1779886232000,-1466.37919438,0.00032015,3]
[423137998,1779886232000,-150.0,0.00032011,7]
[423138011,1779886232000,-150.0,0.00032277,2]
[423137996,1779886232000,-20.53400374,0.00032,120]
[423137997,1779886232000,-150.0,0.00032011,7]
[423138002,1779886232000,-23.34026886,0.00032022,3]
[423138001,1779886232000,-4189.0,0.00032016,2]
[423138004,1779886232000,-329.0,0.00032022,2]
[423138003,1779886232000,-276.65973114,0.00032022,3]
[423138006,1779886232000,-1602.93334734,0.00032023,2]
[423138005,1779886232000,-300.0,0.00032022,3]
[423138007,1779886232000,-249.0,0.00032051,2]
[423138065,1779886232000,-2000.0,0.00033025,120]
[423138008,1779886232000,-150.0,0.00032088,7]
[423138009,1779886232000,-150.0,0.00032134,7]
[423137999,1779886232000,-133.62080562,0.00032015,3]
[423138067,1779886232000,-150.0,0.00033055,7]
[423138061,1779886232000,-151.0,0.00033,2]
[423138073,1779886232000,-150.0,0.00033157,7]
[423138126,1779886232000,-150.0,0.00033635,7]
[423138132,1779886232000,-310.92956,0.00033851,21]
[423138130,1779886232000,-152.0,0.00033809,7]
[423138135,1779886232000,-218.413754,0.00033851,21]
[423138136,1779886232000,-2993.69,0.00033891,2]
[423138137,1779886232000,-502.62966706,0.000339,120]
[423138138,1779886232000,-152.0,0.00033917,7]
[423138071,1779886232000,-2993.69,0.00033084,2]
[423138142,1779886232000,-150.0,0.00034099,7]
[423138141,1779886232000,-150.0,0.00034021,7]
[423138146,1779886232000,-2000.0,0.00034247,30]
[423138139,1779886232000,-500.0,0.00033945,2]
[423138143,1779886232000,-150.0,0.00034099,7]
[423138145,1779886232000,-151.0,0.00034182,7]
[423138147,1779886232000,-152.0,0.00034295,5]
[423138144,1779886232000,-150.0,0.0003418,7]
[423138149,1779886232000,-1104.05,0.00034375,10]
[423138148,1779886232000,-250.0,0.00034337,2]
[423138151,1779886232000,-150.0,0.00034408,7]
[423138150,1779886232000,-150.0,0.00034385,7]
[423138153,1779886232000,-25748.45659976,0.00034442,2]
[423138156,1779886232000,-250.0,0.00034447,2]
[423138155,1779886232000,-295.90921303,0.00034447,30]
[423138154,1779886232000,-250.0,0.00034445,2]
[423138152,1779886232000,-7567.39415319,0.0003441,2]
[423138124,1779886232000,-150.0,0.00033635,7]
[423138134,1779886232000,-218.413753,0.00033851,120]
[423138140,1779886232000,-150.0,0.00033976,7]
[423138120,1779886232000,-18570.0164539,0.00033623,2]
[423138075,1779886232000,-732.304,0.00033165,34]
[423138077,1779886232000,-1000.0,0.00033166,2]
[423138128,1779886232000,-150.0,0.00033771,7]
[423138079,1779886232000,-5000.0,0.00033167,2]
[423138084,1779886232000,-151.0,0.000333,2]
[423138088,1779886232000,-165.44,0.00033353,2]
[423138082,1779886232000,-150.0,0.00033248,7]
[423138089,1779886232000,-150.0,0.00033362,7]
[423138094,1779886232000,-150.0,0.00033403,7]
[423138092,1779886232000,-150.0,0.00033403,7]
[423138102,1779886232000,-370.65417125,0.00033566,2]
[423138086,1779886232000,-151.0,0.000333,7]
[423138104,1779886232000,-150.0,0.00033566,7]
[423138122,1779886232000,-150.0,0.00033635,7]
[423138100,1779886232000,-933.69403119,0.00033566,2]
[423138116,1779886232000,-2617.5056125,0.00033623,2]
[423138115,1779886232000,-934.4671951,0.00033623,2]
[423138110,1779886232000,-3502.5253454,0.00033623,2]
[423138118,1779886232000,-3330.9611072,0.00033623,2]
[423138098,1779886232000,-263.39072739,0.00033566,2]
[423138096,1779886232000,-827.18086267,0.00033566,2]
[423138106,1779886232000,-963.98,0.00033612,10]
[423138108,1779886232000,-1324.86,0.00033612,10]
[423138112,1779886232000,-5472.633363,0.00033623,2]
[423138069,1779886232000,-1549.71,0.00033075,2]
[423138169,1779886233000,-200.0,0.00034542,90]
[423138182,1779886233000,-500.0,0.00034542,10]
[423138175,1779886233000,-500.0,0.00034542,10]
[423138173,1779886233000,-500.0,0.00034542,10]
[423138172,1779886233000,-200.0,0.00034542,90]
[423138171,1779886233000,-500.0,0.00034542,10]
[423138170,1779886233000,-200.0,0.00034542,90]
[423138168,1779886233000,-200.0,0.00034542,90]
[423138164,1779886233000,-200.0,0.00034542,90]
[423138183,1779886233000,-500.0,0.00034542,10]
[423138167,1779886233000,-200.0,0.00034542,90]
[423138163,1779886233000,-200.0,0.00034542,90]
[423138162,1779886233000,-200.9528393,0.00034542,10]
[423138161,1779886233000,-150.0,0.00034542,10]
[423138159,1779886233000,-150.0,0.00034541,10]
[423138160,1779886233000,-150.0,0.00034542,10]
[423138157,1779886233000,-350.0,0.00034489,2]
[423138158,1779886233000,-200.0,0.000345,12]
[423138165,1779886233000,-200.0,0.00034542,90]
[423138185,1779886233000,-200.0,0.00034542,90]
[423138166,1779886233000,-200.0,0.00034542,90]
[423138184,1779886233000,-500.0,0.00034542,10]
[423138197,1779886233000,-150.0,0.00034542,10]
[423138196,1779886233000,-150.0,0.00034542,10]
[423138195,1779886233000,-500.0,0.00034542,10]
[423138194,1779886233000,-500.0,0.00034542,10]
[423138190,1779886233000,-500.0,0.00034542,10]
[423138191,1779886233000,-500.0,0.00034542,10]
[423138192,1779886233000,-200.0,0.00034542,90]
[423138193,1779886233000,-500.0,0.00034542,10]
[423138189,1779886233000,-500.0,0.00034542,10]
[423138199,1779886233000,159.67,0.00031501,30]
[423138198,1779886233000,-123.19623406,0.00034542,10]
[423138187,1779886233000,-500.0,0.00034542,10]
[423138176,1779886233000,-500.0,0.00034542,10]
[423138177,1779886233000,-500.0,0.00034542,10]
[423138180,1779886233000,-500.0,0.00034542,10]
[423138174,1779886233000,-200.0,0.00034542,90]
[423138179,1779886233000,-500.0,0.00034542,10]
[423138181,1779886233000,-200.0,0.00034542,90]
[423138186,1779886233000,-500.0,0.00034542,10]
[423138188,1779886233000,-200.0,0.00034542,90]
[423138178,1779886233000,-200.0,0.00034542,90]
[423138200,1779886234000,150.0,0.00031487,30]
[423138235,1779886238000,-201.72578083,0.00034542,10]
[423138239,1779886238000,-500.0,0.00034542,10]
[423138236,1779886238000,-500.0,0.00034542,10]
[423138240,1779886238000,-159.21382649,0.00034542,10]
[423138238,1779886238000,-385.10071262,0.00034542,10]
[423138237,1779886238000,-114.89928738,0.00034542,10]
[423138241,1779886238000,-150.0,0.00034542,10]
[423138243,1779886238000,-150.0,0.00034542,10]
[423138248,1779886238000,-500.0,0.00034542,10]
[423138242,1779886238000,-150.0,0.00034542,10]
[423138252,1779886238000,-242.29870529,0.00034542,10]
[423138254,1779886238000,-275.82189915,0.00034542,10]
[423138245,1779886238000,-150.0,0.00034542,10]
[423138246,1779886238000,-249.9920584,0.00034542,10]
[423138250,1779886238000,-257.70129471,0.00034542,10]
[423138234,1779886238000,-298.27421917,0.00034542,10]
[423138253,1779886238000,-224.17810085,0.00034542,10]
[423138247,1779886238000,-500.0,0.00034542,10]
[423138223,1779886238000,-250.0,0.00034542,10]
[423138232,1779886238000,-500.0,0.00034542,10]
[423138216,1779886238000,-376.80376594,0.00034542,10]
[423138215,1779886238000,-159.68,0.00032449,7]
[423138217,1779886238000,-150.0,0.00034542,10]
[423138218,1779886238000,-150.0,0.00034542,10]
[423138219,1779886238000,-500.0,0.00034542,10]
[423138221,1779886238000,-348.31635487,0.00034542,10]
[423138220,1779886238000,-150.0,0.00034542,10]
[423138231,1779886238000,-500.0,0.00034542,10]
[423138230,1779886238000,-216.35376736,0.00034542,10]
[423138225,1779886238000,-421.5571936,0.00034542,10]
[423138224,1779886238000,-500.0,0.00034542,10]
[423138222,1779886238000,-151.68364513,0.00034542,10]
[423138227,1779886238000,-500.0,0.00034542,10]
[423138226,1779886238000,-78.4428064,0.00034542,10]
[423138229,1779886238000,-423.64623264,0.00034542,10]
[423138228,1779886238000,-500.0,0.00034542,10]
[423138244,1779886238000,-150.0,0.00034542,10]
[423138249,1779886238000,-500.0,0.00034542,10]
[423138233,1779886238000,-452.51157974,0.00034542,10]
[423138255,1779886238000,-500.0,0.00034542,10]
[423138278,1779886238000,-500.0,0.00034542,10]
[423138281,1779886238000,-500.0,0.00034542,10]
[423138280,1779886238000,-500.0,0.00034542,10]
[423138283,1779886238000,-500.0,0.00034542,10]
[423138284,1779886238000,-500.0,0.00034542,10]
[423138286,1779886238000,-500.0,0.00034542,10]
[423138282,1779886238000,-500.0,0.00034542,10]
[423138291,1779886238000,-500.0,0.00034542,2]
[423138290,1779886238000,-500.0,0.00034542,2]
[423138287,1779886238000,-531.57193254,0.00034542,10]
[423138289,1779886238000,-500.0,0.00034542,2]
[423138285,1779886238000,-500.0,0.00034542,10]
[423138293,1779886238000,-500.0,0.00034542,2]
[423138292,1779886238000,-500.0,0.00034542,2]
[423138295,1779886238000,-166.69,0.00034561,30]
[423138294,1779886238000,-366.55431461,0.00034542,2]
[423138256,1779886238000,-500.0,0.00034542,10]
[423138277,1779886238000,-242.77531095,0.00034542,10]
[423138271,1779886238000,-377.82456961,0.00034542,10]
[423138288,1779886238000,-150.0,0.00034542,2]
[423138275,1779886238000,-500.0,0.00034542,10]
[423138263,1779886238000,-500.0,0.00034542,10]
[423138272,1779886238000,-500.0,0.00034542,10]
[423138266,1779886238000,-500.0,0.00034542,10]
[423138265,1779886238000,-500.0,0.00034542,10]
[423138261,1779886238000,-500.0,0.00034542,10]
[423138257,1779886238000,-358.80016249,0.00034542,10]
[423138258,1779886238000,-150.0,0.00034542,10]
[423138260,1779886238000,-500.0,0.00034542,10]
[423138267,1779886238000,-500.0,0.00034542,10]
[423138264,1779886238000,-500.0,0.00034542,10]
[423138270,1779886238000,-500.0,0.00034542,10]
[423138268,1779886238000,-119.09648936,0.00034542,10]
[423138274,1779886238000,-508.00396675,0.00034542,10]
[423138269,1779886238000,-380.90351064,0.00034542,10]
[423138279,1779886238000,-500.0,0.00034542,10]
[423138276,1779886238000,-500.0,0.00034542,10]
[423138262,1779886238000,-500.0,0.00034542,10]
[423138273,1779886238000,-500.0,0.00034542,10]
[423138337,1779886239000,-500.0,0.00034739,30]
[423138332,1779886239000,-822.60944484,0.000347,2]
[423138339,1779886239000,-500.0,0.00034739,30]
[423138336,1779886239000,-500.0,0.00034739,30]
[423138334,1779886239000,-500.0,0.00034739,30]
[423138335,1779886239000,-500.0,0.00034739,30]
[423138338,1779886239000,-500.0,0.00034739,30]
[423138333,1779886239000,-17603.90524217,0.000347,2]
[423138331,1779886239000,-2951.67803652,0.000347,2]
[423138326,1779886239000,-700.0,0.000347,12]
[423138340,1779886239000,-500.0,0.00034739,30]
[423138327,1779886239000,-5000.0,0.000347,2]
[423138341,1779886239000,-500.0,0.00034739,30]
[423138342,1779886239000,-500.0,0.00034739,30]
[423138353,1779886239000,-236.41594092,0.00034739,30]
[423138355,1779886239000,-500.0,0.00034739,30]
[423138354,1779886239000,-500.0,0.00034739,30]
[423138346,1779886239000,-500.0,0.00034739,30]
[423138343,1779886239000,-500.0,0.00034739,30]
[423138347,1779886239000,-500.0,0.00034739,30]
[423138345,1779886239000,-500.0,0.00034739,30]
[423138349,1779886239000,-500.0,0.00034739,30]
[423138352,1779886239000,-500.0,0.00034739,30]
[423138348,1779886239000,-500.0,0.00034739,30]
[423138350,1779886239000,-500.0,0.00034739,30]
[423138351,1779886239000,-500.0,0.00034739,30]
[423138356,1779886239000,-500.0,0.00034739,30]
[423138328,1779886239000,-446.21409116,0.000347,2]
[423138344,1779886239000,-500.0,0.00034739,30]
[423138325,1779886239000,-368.69231298,0.000347,2]
[423138311,1779886239000,-500.0,0.00034625,120]
[423138324,1779886239000,-2993.69,0.00034698,2]
[423138358,1779886239000,-1000.0,0.00034749,2]
[423138303,1779886239000,-150.0,0.00034625,2]
[423138305,1779886239000,-150.0,0.00034625,2]
[423138304,1779886239000,-150.0,0.00034625,2]
[423138298,1779886239000,-400.0,0.000346,12]
[423138300,1779886239000,-150.0,0.00034625,2]
[423138301,1779886239000,-150.0,0.00034625,2]
[423138296,1779886239000,-2240.0,0.00034576,3]
[423138297,1779886239000,-150.0,0.0003459,7]
[423138299,1779886239000,-150.0,0.00034625,2]
[423138302,1779886239000,-150.0,0.00034625,2]
[423138306,1779886239000,-250.0,0.00034625,2]
[423138312,1779886239000,-500.0,0.00034625,120]
[423138308,1779886239000,-150.0,0.00034625,2]
[423138309,1779886239000,-150.0,0.00034625,2]
[423138316,1779886239000,-500.0,0.00034625,120]
[423138310,1779886239000,-184.48877466,0.00034625,2]
[423138315,1779886239000,-456.79764672,0.00034625,120]
[423138313,1779886239000,-500.0,0.00034625,120]
[423138317,1779886239000,-500.0,0.00034625,120]
[423138307,1779886239000,-150.0,0.00034625,2]
[423138314,1779886239000,-500.0,0.00034625,120]
[423138319,1779886239000,-10826.40344534,0.00034672,2]
[423138330,1779886239000,-6121.64538619,0.000347,2]
[423138329,1779886239000,-415.33758755,0.000347,2]
[423138318,1779886239000,-248.08,0.00034625,120]
[423138320,1779886239000,-3748.95612692,0.00034672,2]
[423138321,1779886239000,-11173.09702744,0.00034672,2]
[423138322,1779886239000,-6809.6993,0.00034689,2]
[423138323,1779886239000,-920.04,0.0003469,10]
[423138360,1779886239000,-253.38749672,0.0003475,7]
[423138413,1779886239000,-900.0,0.000348,12]
[423138364,1779886239000,-199.11874836,0.00034795,7]
[423138396,1779886239000,-500.0,0.00034799,7]
[423138405,1779886239000,-1500000.0,0.000348,2]
[423138395,1779886239000,-500.0,0.00034799,7]
[423138400,1779886239000,-500.0,0.00034799,2]
[423138403,1779886239000,-43981.93348438,0.000348,4]
[423138398,1779886239000,-500.0,0.00034799,7]
[423138406,1779886239000,-2500000.0,0.000348,2]
[423138399,1779886239000,-539.71,0.00034799,7]
[423138402,1779886239000,-500.0,0.00034799,2]
[423138394,1779886239000,-500.0,0.00034799,7]
[423138404,1779886239000,-20164.97283824,0.000348,5]
[423138401,1779886239000,-500.0,0.00034799,2]
[423138407,1779886239000,-151.0,0.000348,7]
[423138397,1779886239000,-500.0,0.00034799,7]
[423138409,1779886239000,-151.0,0.000348,7]
[423138418,1779886239000,-151.0,0.000348,7]
[423138412,1779886239000,-151.0,0.000348,7]
[423138423,1779886239000,-151.0,0.000348,7]
[423138411,1779886239000,-151.0,0.000348,7]
[423138408,1779886239000,-151.0,0.000348,7]
[423138414,1779886239000,-151.0,0.000348,7]
[423138420,1779886239000,-151.0,0.000348,7]
[423138415,1779886239000,-151.0,0.000348,7]
[423138417,1779886239000,-155.211679,0.000348,7]
[423138416,1779886239000,-151.0,0.000348,7]
[423138419,1779886239000,-263.045368,0.000348,7]
[423138421,1779886239000,-151.0,0.000348,7]
[423138422,1779886239000,-151.0,0.000348,7]
[423138410,1779886239000,-151.0,0.000348,7]
[423138386,1779886239000,-500.0,0.00034799,30]
[423138357,1779886239000,-406.29556674,0.00034739,30]
[423138383,1779886239000,-500.0,0.00034799,30]
[423138359,1779886239000,-213.65620423,0.0003475,7]
[423138361,1779886239000,-500.0,0.00034767,2]
[423138362,1779886239000,-251.37092639,0.00034795,7]
[423138365,1779886239000,-150.0,0.00034795,7]
[423138363,1779886239000,-150.00000001,0.00034795,7]
[423138366,1779886239000,-150.0,0.00034795,7]
[423138367,1779886239000,-232.63617513,0.00034795,7]
[423138379,1779886239000,-500.0,0.00034799,30]
[423138369,1779886239000,-150.0,0.00034795,7]
[423138370,1779886239000,-150.0,0.00034795,7]
[423138368,1779886239000,-150.0,0.00034795,7]
[423138372,1779886239000,-222.80647009,0.00034795,7]
[423138376,1779886239000,-152.43213744,0.00034799,120]
[423138378,1779886239000,-565.47321967,0.00034799,120]
[423138389,1779886239000,-300.0,0.00034799,10]
[423138377,1779886239000,-300.0,0.00034799,10]
[423138388,1779886239000,-300.0,0.00034799,10]
[423138390,1779886239000,-500.0,0.00034799,7]
[423138385,1779886239000,-500.0,0.00034799,30]
[423138387,1779886239000,-446.89864306,0.00034799,30]
[423138374,1779886239000,-300.0,0.00034799,10]
[423138384,1779886239000,-500.0,0.00034799,30]
[423138393,1779886239000,-500.0,0.00034799,7]
[423138381,1779886239000,-500.0,0.00034799,30]
[423138382,1779886239000,-500.0,0.00034799,30]
[423138380,1779886239000,-500.0,0.00034799,30]
[423138371,1779886239000,-150.0,0.00034795,7]
[423138373,1779886239000,-9792.13244004,0.00034799,2]
[423138375,1779886239000,-300.0,0.00034799,10]
[423138392,1779886239000,-500.0,0.00034799,7]
[423138463,1779886240000,-151.0,0.00035448,7]
[423138470,1779886240000,-17005.41,0.00035455,2]
[423138468,1779886240000,-150.99,0.00035455,2]
[423138472,1779886240000,-999.99,0.00035455,10]
[423138467,1779886240000,-4999.99,0.00035455,30]
[423138457,1779886240000,-1544.0,0.00035269,7]
[423138464,1779886240000,-151.0,0.00035448,7]